{"text_format":"3","workbook":"xlsx","n_sheets":2,"sheets":["قائمة المعلم"," بيانات القائمة"],"not_rendered":{"defined_names":6},"read":"whole","date_system":"1900"}

{"sheet":"قائمة المعلم","index":0,"n_rows":10,"n_cols":10,"rows_kept":10,"merged":[[0,1,0,2],[0,4,0,8],[2,9,6,9]]}
[null,"قائمة المعلم",null,"بيانات القائمة","وسيلة إيضاح \"الحالة\" بالألوان في هذه الخلية: لم يتم بدؤها بنمط عادي، قيد التقدم بتنسيق R=91 G=133 B=49، تستحق اليوم بتنسيق R=118 G=88 B=0، معلقة بتنسيق R=109 G=66 B=111، مكتملة بتنسيق يتوسطه خط، مُلغاة بتنسيق R=191 G=191 B=191، متأخرة بتنسيق R=191 G=33 B=28."]
[null,"العنصر","الفئة","تاريخ البدء","تاريخ الاستحقاق","الأيام المتبقية","الحالة","الملاحظات"]
[null,"تنظيف الأدراج","مكتب",{"$f":"DATE(YEAR(TODAY()),MONTH(TODAY())-1,6)","v":"2018-04-06"},{"$f":"DATE(YEAR(TODAY()),MONTH(TODAY())-1,16)","v":"2018-04-16"},{"$f":"IFERROR(IF(COUNT(القائمة[[#This Row],[تاريخ البدء]]:القائمة[[#This Row],[تاريخ الاستحقاق]])<>2,\"\",IF(OR(القائمة[[#This Row],[الحالة]]=\"مكتملة\",القائمة[[#This Row],[الحالة]]=\"مُلغاة\",القائمة[[#This Row],[الحالة]]=\"معلقة\"),\"\",القائمة[[#This Row],[تاريخ الاستحقاق]]-TODAY())),\"\")","v":""},"مكتملة",null,null,"مقسم طريقة عرض الحالة في هذه الخلية. لتصفية القائمة حسب الحالة، حدد إحدى الحالات من مقسم طريقة العرض. اضغط باستمرار على CTRL لتحديد خيارات متعددة."]
[null,"طلب لاصقات صور","مستلزمات",{"$f":"DATE(YEAR(TODAY()),MONTH(TODAY())-1,11)","v":"2018-04-11"},{"$f":"DATE(YEAR(TODAY()),MONTH(TODAY())-1,21)","v":"2018-04-21"},{"$f":"IFERROR(IF(COUNT(القائمة[[#This Row],[تاريخ البدء]]:القائمة[[#This Row],[تاريخ الاستحقاق]])<>2,\"\",IF(OR(القائمة[[#This Row],[الحالة]]=\"مكتملة\",القائمة[[#This Row],[الحالة]]=\"مُلغاة\",القائمة[[#This Row],[الحالة]]=\"معلقة\"),\"\",القائمة[[#This Row],[تاريخ الاستحقاق]]-TODAY())),\"\")","v":""},"مكتملة"]
[null,"تنظيف الأرضيات وتشميعها","أخرى",{"$f":"DATE(YEAR(TODAY()),MONTH(TODAY()-1),DAY(TODAY())-25)","v":"2018-04-16"},{"$f":"DATE(YEAR(TODAY()),MONTH(TODAY())-1,26)","v":"2018-04-26"},{"$f":"IFERROR(IF(COUNT(القائمة[[#This Row],[تاريخ البدء]]:القائمة[[#This Row],[تاريخ الاستحقاق]])<>2,\"\",IF(OR(القائمة[[#This Row],[الحالة]]=\"مكتملة\",القائمة[[#This Row],[الحالة]]=\"مُلغاة\",القائمة[[#This Row],[الحالة]]=\"معلقة\"),\"\",القائمة[[#This Row],[تاريخ الاستحقاق]]-TODAY())),\"\")","v":""},"مكتملة"]
[null,"إنشاء ملصقات الأسماء","مستلزمات",{"$f":"DATE(YEAR(TODAY()),MONTH(TODAY())-1,21)","v":"2018-04-21"},{"$f":"DATE(YEAR(TODAY()),MONTH(TODAY())-1,1)","v":"2018-04-01"},{"$f":"IFERROR(IF(COUNT(القائمة[[#This Row],[تاريخ البدء]]:القائمة[[#This Row],[تاريخ الاستحقاق]])<>2,\"\",IF(OR(القائمة[[#This Row],[الحالة]]=\"مكتملة\",القائمة[[#This Row],[الحالة]]=\"مُلغاة\",القائمة[[#This Row],[الحالة]]=\"معلقة\"),\"\",القائمة[[#This Row],[تاريخ الاستحقاق]]-TODAY())),\"\")","v":""},"معلقة"]
[null,"إنشاء تقارير ربع سنوية مكتوبة بالدرجات","تقييمات",{"$f":"DATE(YEAR(TODAY()),MONTH(TODAY())-1,26)","v":"2018-04-26"},{"$f":"TODAY()-5","v":"2018-05-06"},{"$f":"IFERROR(IF(COUNT(القائمة[[#This Row],[تاريخ البدء]]:القائمة[[#This Row],[تاريخ الاستحقاق]])<>2,\"\",IF(OR(القائمة[[#This Row],[الحالة]]=\"مكتملة\",القائمة[[#This Row],[الحالة]]=\"مُلغاة\",القائمة[[#This Row],[الحالة]]=\"معلقة\"),\"\",القائمة[[#This Row],[تاريخ الاستحقاق]]-TODAY())),\"\")","v":-5},"متأخرة"]
[null,"إرسال تذكير بالبريد الإلكتروني بشأن استمارات الأذونات","مكالمات هاتفية",{"$f":"DATE(YEAR(TODAY()),MONTH(TODAY()),1)","v":"2018-05-01"},{"$f":"TODAY()","v":"2018-05-11"},{"$f":"IFERROR(IF(COUNT(القائمة[[#This Row],[تاريخ البدء]]:القائمة[[#This Row],[تاريخ الاستحقاق]])<>2,\"\",IF(OR(القائمة[[#This Row],[الحالة]]=\"مكتملة\",القائمة[[#This Row],[الحالة]]=\"مُلغاة\",القائمة[[#This Row],[الحالة]]=\"معلقة\"),\"\",القائمة[[#This Row],[تاريخ الاستحقاق]]-TODAY())),\"\")","v":""},"مُلغاة"]
[null,"تحضير تقارير شفوية بالدرجات","مكتب",{"$f":"DATE(YEAR(TODAY()),MONTH(TODAY()),7)","v":"2018-05-07"},{"$f":"DATE(YEAR(TODAY()),MONTH(TODAY()),17)","v":"2018-05-17"},{"$f":"IFERROR(IF(COUNT(القائمة[[#This Row],[تاريخ البدء]]:القائمة[[#This Row],[تاريخ الاستحقاق]])<>2,\"\",IF(OR(القائمة[[#This Row],[الحالة]]=\"مكتملة\",القائمة[[#This Row],[الحالة]]=\"مُلغاة\",القائمة[[#This Row],[الحالة]]=\"معلقة\"),\"\",القائمة[[#This Row],[تاريخ الاستحقاق]]-TODAY())),\"\")","v":6},"قيد التقدم"]
[null,"بري الأقلام الرصاص","مستلزمات",{"$f":"DATE(YEAR(TODAY()),MONTH(TODAY()),11)","v":"2018-05-11"},{"$f":"DATE(YEAR(TODAY()),MONTH(TODAY()),10)","v":"2018-05-10"},{"$f":"IFERROR(IF(COUNT(القائمة[[#This Row],[تاريخ البدء]]:القائمة[[#This Row],[تاريخ الاستحقاق]])<>2,\"\",IF(OR(القائمة[[#This Row],[الحالة]]=\"مكتملة\",القائمة[[#This Row],[الحالة]]=\"مُلغاة\",القائمة[[#This Row],[الحالة]]=\"معلقة\"),\"\",القائمة[[#This Row],[تاريخ الاستحقاق]]-TODAY())),\"\")","v":-1},"قيد التقدم"]

{"sheet":" بيانات القائمة","index":1,"n_rows":13,"n_cols":3,"rows_kept":13}
[null,"بيانات القائمة","قائمة المعلم"]
[null,"الفئة"]
[null,"مكتب"]
[null,"مستلزمات"]
[null,"الأشياء التي يجب شراؤها"]
[null,"مكالمات هاتفية"]
[null,"أفكار جديدة"]
[null,"تقييمات"]
[null,"الفريق"]
[null,"أنشطة"]
[null,"كمبيوتر"]
[null,"شخصية"]
[null,"أخرى"]